[Event "*** Titled Tuesday 3|2 Blitz"]
[Site "Chess.com"]
[Date "2016.07.05"]
[Round "6"]
[White "Alliswell998"]
[Black "oskariot"]
[Result "1-0"]
[WhiteElo "2182"]
[BlackElo "2283"]
[TimeControl "180+2"]
[EndTime "18:18:29 PDT"]
[Termination "Alliswell998 won by resignation"]

1. e4 {[%clk 0:03:01.9]} 1... c5 {[%clk 0:03:00.4]} 2. Nc3 {[%clk 0:03:01.4]}
2... e6 {[%clk 0:03:01.1]} 3. Nf3 {[%clk 0:03:01.9]} 3... d6 {[%clk 0:02:58.8]}
4. d4 {[%clk 0:03:02.9]} 4... cxd4 {[%clk 0:02:57.5]} 5. Nxd4 {[%clk 0:03:04.8]}
5... Nf6 {[%clk 0:02:58.6]} 6. Be3 {[%clk 0:03:05.9]} 6... a6 {[%clk 0:02:58.6]}
7. Bc4 {[%clk 0:03:07.1]} 7... b5 {[%clk 0:02:34.6]} 8. Bb3 {[%clk 0:03:06.8]}
8... b4 {[%clk 0:02:35.9]} 9. Na4 {[%clk 0:03:04.3]} 9... Nxe4 {[%clk
0:02:35.8]} 10. O-O {[%clk 0:02:58]} 10... Be7 {[%clk 0:02:33.6]} 11. Qg4 {[%clk
0:02:54.6]} 11... Nf6 {[%clk 0:02:23.8]} 12. Qxg7 {[%clk 0:02:49.2]} 12... Rg8
{[%clk 0:02:23.6]} 13. Qh6 {[%clk 0:02:50.1]} 13... Bb7 {[%clk 0:02:21.9]} 14.
f3 {[%clk 0:02:48.3]} 14... Rg6 {[%clk 0:02:20]} 15. Qh3 {[%clk 0:02:48.3]}
15... Nbd7 {[%clk 0:02:07.1]} 16. Rfe1 {[%clk 0:02:24.3]} 16... Ne5 {[%clk
0:02:05.2]} 17. Rad1 {[%clk 0:02:13.3]} 17... Qc7 {[%clk 0:02:01.2]} 18. Kh1
{[%clk 0:01:46]} 18... O-O-O {[%clk 0:01:57.9]} 19. c3 {[%clk 0:01:24.2]} 19...
bxc3 {[%clk 0:01:27.8]} 20. Rc1 {[%clk 0:01:21.2]} 20... Kb8 {[%clk 0:01:28.1]}
21. Rxc3 {[%clk 0:01:20.9]} 21... Qa5 {[%clk 0:01:27.6]} 22. a3 {[%clk
0:01:07.4]} 22... Rdg8 {[%clk 0:01:21.5]} 23. Re2 {[%clk 0:00:47.2]} 23... Nd5
{[%clk 0:01:06.4]} 24. Bxd5 {[%clk 0:00:45.6]} 24... Bxd5 {[%clk 0:00:50.6]} 25.
b3 {[%clk 0:00:27.5]} 25... Bb7 {[%clk 0:00:26.5]} 26. Bd2 {[%clk 0:00:27.9]}
26... Qd5 {[%clk 0:00:26]} 27. Be3 {[%clk 0:00:26.3]} 27... Bd8 {[%clk
0:00:19.7]} 28. Rc1 {[%clk 0:00:21.2]} 28... f5 {[%clk 0:00:14.6]} 29. Nc3
{[%clk 0:00:21.2]} 29... Qa5 {[%clk 0:00:11.6]} 30. b4 {[%clk 0:00:15.8]} 30...
Qxa3 {[%clk 0:00:12.2]} 31. Ra2 {[%clk 0:00:16.2]} 31... Qxb4 {[%clk 0:00:10.4]}
32. Nce2 {[%clk 0:00:16.6]} 32... Bb6 {[%clk 0:00:07]} 33. Raa1 {[%clk
0:00:16.1]} 33... Nd3 {[%clk 0:00:05]} 34. Rab1 {[%clk 0:00:16.1]} 34... Nxc1
{[%clk 0:00:03.1]} 35. Rxb4 {[%clk 0:00:16.4]} 35... Nxe2 {[%clk 0:00:04.3]} 36.
Rxb6 {[%clk 0:00:16.9]} 36... Nxd4 {[%clk 0:00:04.3]} 37. Bxd4 {[%clk
0:00:17.7]} 37... e5 {[%clk 0:00:05.3]} 38. Qxh7 {[%clk 0:00:13]} 38... R6g7
{[%clk 0:00:04.3]} 39. Rxb7+ {[%clk 0:00:14.4]} 39... Kxb7 {[%clk 0:00:05.1]}
40. Qxf5 {[%clk 0:00:15]} 40... exd4 {[%clk 0:00:06.6]} 41. Qe4+ {[%clk
0:00:16.4]} 41... Kc7 {[%clk 0:00:07.5]} 42. Qxd4 {[%clk 0:00:18.3]} 42... Rxg2
{[%clk 0:00:08.6]} 43. Qc4+ {[%clk 0:00:19]} 43... Kd7 {[%clk 0:00:09.6]} 44.
Qf7+ {[%clk 0:00:18.9]} 44... Kc6 {[%clk 0:00:10.5]} 45. Qc4+ {[%clk 0:00:20]}
45... Kb6 {[%clk 0:00:11.8]} 46. Qb4+ {[%clk 0:00:21.1]} 46... Ka7 {[%clk
0:00:12.8]} 47. Qd4+ {[%clk 0:00:22.1]} 47... Kb7 {[%clk 0:00:14]} 48. Qb4+
{[%clk 0:00:22.2]} 48... Kc7 {[%clk 0:00:14.9]} 49. Qa5+ {[%clk 0:00:23.1]}
49... Kd7 {[%clk 0:00:16.1]} 50. Qa4+ {[%clk 0:00:23]} 50... Ke7 {[%clk
0:00:16.7]} 51. Qe4+ {[%clk 0:00:24.1]} 51... Kf6 {[%clk 0:00:17.9]} 52. Qf4+
{[%clk 0:00:25]} 52... Ke6 {[%clk 0:00:19.1]} 53. Qc4+ {[%clk 0:00:25.9]} 53...
d5 {[%clk 0:00:19.8]} 54. Qc6+ {[%clk 0:00:26.8]} 54... Ke5 {[%clk 0:00:20.9]}
55. Qc7+ {[%clk 0:00:27.9]} 55... Kd4 {[%clk 0:00:22.1]} 56. Qb6+ {[%clk
0:00:28.6]} 56... Kd3 {[%clk 0:00:23.1]} 57. Qxa6+ {[%clk 0:00:29.4]} 57... Ke3
{[%clk 0:00:24]} 58. Qa3+ {[%clk 0:00:29.9]} 58... Kf4 {[%clk 0:00:25]} 59. Qd6+
{[%clk 0:00:30]} 59... Kxf3 {[%clk 0:00:25.9]} 60. Qxd5+ {[%clk 0:00:31.3]}
60... Kf2 {[%clk 0:00:27.2]} 61. Qd4+ {[%clk 0:00:31.5]} 61... Kf1 {[%clk
0:00:28.5]} 62. Qd3+ {[%clk 0:00:31.7]} 62... Kf2 {[%clk 0:00:29]} 63. Qd2+
{[%clk 0:00:32.4]} 63... Kf1 {[%clk 0:00:26.6]} 64. Qf4+ {[%clk 0:00:31]} 64...
Ke2 {[%clk 0:00:20.9]} 65. Qe4+ {[%clk 0:00:30.9]} 65... Kf2 {[%clk 0:00:20.5]}
66. Qf5+ {[%clk 0:00:29.9]} 66... Ke1 {[%clk 0:00:20.2]} 67. Qa5+ {[%clk
0:00:29]} 67... Kf1 {[%clk 0:00:19.9]} 68. Qb5+ {[%clk 0:00:29.1]} 68... Kf2
{[%clk 0:00:20.2]} 69. Qc5+ {[%clk 0:00:29.5]} 69... Kf1 {[%clk 0:00:20.6]} 70.
Qc1+ {[%clk 0:00:29.7]} 70... Kf2 {[%clk 0:00:21]} 71. Qd2+ {[%clk 0:00:30.2]}
71... Kf1 {[%clk 0:00:22.1]} 72. Qd3+ {[%clk 0:00:26.1]} 72... Kf2 {[%clk
0:00:18.3]} 73. Qf5+ {[%clk 0:00:26.8]} 73... Ke1 {[%clk 0:00:18.9]} 74. Qe4+
{[%clk 0:00:27.5]} 74... Kf1 {[%clk 0:00:19.8]} 75. Qf3+ {[%clk 0:00:28.2]}
75... Ke1 {[%clk 0:00:15.7]} 76. Qxg2 {[%clk 0:00:23.9]} 76... Rxg2 {[%clk
0:00:16.5]} 77. Kxg2 {[%clk 0:00:25.3]} 77... Ke2 {[%clk 0:00:18.4]} 78. Kg3
{[%clk 0:00:25.8]} 78... Ke3 {[%clk 0:00:19.9]} 79. h4 {[%clk 0:00:24.2]} 79...
Ke4 {[%clk 0:00:20.9]} 80. Kg4 {[%clk 0:00:25.5]} 80... Ke5 {[%clk 0:00:22.7]}
81. Kg5 {[%clk 0:00:26.9]} 81... Ke6 {[%clk 0:00:24.6]} 82. Kg6 {[%clk
0:00:28.3]} 82... Ke7 {[%clk 0:00:26.1]} 83. Kg7 {[%clk 0:00:29.4]} 83... Ke6
{[%clk 0:00:27.8]} 84. h5 {[%clk 0:00:30.9]} 84... Kd5 {[%clk 0:00:29.3]} 85. h6
{[%clk 0:00:32.8]} 85... Ke4 {[%clk 0:00:30.8]} 86. h7 {[%clk 0:00:34.7]} 86...
Kd3 {[%clk 0:00:32.7]} 87. h8=Q {[%clk 0:00:36.6]} 87... Kc2 {[%clk 0:00:34.6]}
88. Qd8 {[%clk 0:00:37.6]} 1-0

[Event "*** Titled Tuesday 3|2 Blitz"]
[Site "Chess.com"]
[Date "2016.07.05"]
[Round "7"]
[White "AlexanderL"]
[Black "Hikaru"]
[Result "0-1"]
[WhiteElo "2559"]
[BlackElo "2987"]
[TimeControl "180+2"]
[EndTime "18:24:37 PDT"]
[Termination "Hikaru won by resignation"]

1. d4 {[%clk 0:03:01.9]} 1... Nf6 {[%clk 0:03:00.4]} 2. c4 {[%clk 0:03:02.8]}
2... e6 {[%clk 0:03:02.2]} 3. Nc3 {[%clk 0:03:03.8]} 3... Bb4 {[%clk 0:03:02.5]}
4. Qc2 {[%clk 0:03:04.9]} 4... O-O {[%clk 0:03:03.3]} 5. Nf3 {[%clk 0:03:06.2]}
5... d5 {[%clk 0:03:04]} 6. a3 {[%clk 0:03:05.7]} 6... Bxc3+ {[%clk 0:03:04.4]}
7. Qxc3 {[%clk 0:03:07.6]} 7... dxc4 {[%clk 0:03:06]} 8. Qxc4 {[%clk 0:03:08.6]}
8... b6 {[%clk 0:03:07.7]} 9. Bg5 {[%clk 0:03:09.6]} 9... Ba6 {[%clk 0:03:08.8]}
10. Qa4 {[%clk 0:03:10.5]} 10... Qd7 {[%clk 0:03:05]} 11. Qxd7 {[%clk
0:02:55.2]} 11... Nbxd7 {[%clk 0:03:05.2]} 12. Rc1 {[%clk 0:02:56.5]} 12... Ne4
{[%clk 0:02:49.6]} 13. Rxc7 {[%clk 0:02:50.1]} 13... Rfc8 {[%clk 0:02:38.2]} 14.
Rxd7 {[%clk 0:02:01.8]} 14... Bb5 {[%clk 0:02:38.4]} 15. Re7 {[%clk 0:02:02.5]}
15... Kf8 {[%clk 0:02:39.2]} 16. Rb7 {[%clk 0:01:48.4]} 16... Ba6 {[%clk
0:02:34.4]} 17. Rd7 {[%clk 0:01:44.8]} 17... Bb5 {[%clk 0:02:35.7]} 18. Rb7
{[%clk 0:01:38.7]} 18... Bc6 {[%clk 0:02:36.2]} 19. Rxf7+ {[%clk 0:01:39.1]}
19... Kxf7 {[%clk 0:02:36.7]} 20. Ne5+ {[%clk 0:01:38]} 20... Kg8 {[%clk
0:02:35]} 21. Be3 {[%clk 0:01:37.7]} 21... Bb5 {[%clk 0:02:34]} 22. f3 {[%clk
0:01:37.6]} 22... Nf6 {[%clk 0:02:35.2]} 23. Bd2 {[%clk 0:01:15]} 23... Rc2
{[%clk 0:02:29.1]} 24. b3 {[%clk 0:01:16.3]} 24... Rb2 {[%clk 0:02:16.4]} 25. a4
{[%clk 0:01:14.4]} 25... Be8 {[%clk 0:02:03.1]} 26. g3 {[%clk 0:01:11.2]} 26...
Rxb3 {[%clk 0:02:01.6]} 27. Bh3 {[%clk 0:01:12.4]} 27... Rb1+ {[%clk 0:02:02.5]}
28. Kf2 {[%clk 0:01:12.8]} 28... Rxh1 {[%clk 0:02:04.4]} 29. Bxe6+ {[%clk
0:01:14]} 29... Kh8 {[%clk 0:02:05.9]} 30. h4 {[%clk 0:01:13.6]} 0-1

[Event "*** Titled Tuesday 3|2 Blitz"]
[Site "Chess.com"]
[Date "2016.07.05"]
[Round "7"]
[White "DanielNaroditsky"]
[Black "MaestroASK"]
[Result "1-0"]
[WhiteElo "2672"]
[BlackElo "2491"]
[TimeControl "180+2"]
[EndTime "18:24:52 PDT"]
[Termination "DanielNaroditsky won by resignation"]

1. d4 {[%clk 0:03:01.9]} 1... d6 {[%clk 0:02:58.8]} 2. Nf3 {[%clk 0:03:01.2]}
2... g6 {[%clk 0:02:59.7]} 3. e4 {[%clk 0:03:02.1]} 3... Bg7 {[%clk 0:03:00.3]}
4. Nc3 {[%clk 0:03:03.7]} 4... e5 {[%clk 0:03:01.2]} 5. Bc4 {[%clk 0:03:03.5]}
5... Nd7 {[%clk 0:02:59.9]} 6. Bxf7+ {[%clk 0:02:00.3]} 6... Kxf7 {[%clk
0:02:53.1]} 7. Ng5+ {[%clk 0:02:01.3]} 7... Ke8 {[%clk 0:02:35.9]} 8. Ne6 {[%clk
0:02:01]} 8... Qe7 {[%clk 0:02:25.6]} 9. Nxc7+ {[%clk 0:02:01.3]} 9... Kd8
{[%clk 0:02:21.9]} 10. N3d5 {[%clk 0:02:03.2]} 10... Qf7 {[%clk 0:01:50.5]} 11.
Nxa8 {[%clk 0:02:02.5]} 11... exd4 {[%clk 0:01:50.5]} 12. Bg5+ {[%clk 0:02:03]}
12... Ngf6 {[%clk 0:01:49.7]} 13. Qxd4 {[%clk 0:01:58.8]} 13... h6 {[%clk
0:01:48.9]} 14. Bxf6+ {[%clk 0:01:46.4]} 14... Bxf6 {[%clk 0:01:49.2]} 15. Nxf6
{[%clk 0:01:42.5]} 15... Qxf6 {[%clk 0:01:49.7]} 16. Qxf6+ {[%clk 0:01:43]}
16... Nxf6 {[%clk 0:01:50.2]} 17. O-O-O {[%clk 0:01:44.9]} 17... Nxe4 {[%clk
0:01:45.4]} 18. Rhe1 {[%clk 0:01:41.8]} 18... Nxf2 {[%clk 0:01:33.2]} 19. Rxd6+
{[%clk 0:01:41.8]} 19... Bd7 {[%clk 0:01:34]} 20. Re2 {[%clk 0:01:26.1]} 20...
Rf8 {[%clk 0:01:26.9]} 21. Red2 {[%clk 0:01:26.8]} 21... Rf7 {[%clk 0:01:23.4]}
22. Rxd7+ {[%clk 0:01:27]} 22... Rxd7 {[%clk 0:01:23.9]} 23. Rxf2 {[%clk
0:01:28.9]} 23... Ke7 {[%clk 0:01:21.3]} 24. Rf3 {[%clk 0:01:27]} 1-0

[Event "*** Titled Tuesday 3|2 Blitz"]
[Site "Chess.com"]
[Date "2016.07.05"]
[Round "7"]
[White "EltajSafarli"]
[Black "E-Shaposhnikov"]
[Result "1/2-1/2"]
[WhiteElo "2831"]
[BlackElo "2683"]
[TimeControl "180+2"]
[EndTime "18:24:55 PDT"]
[Termination "Game drawn by repetition"]

1. e4 {[%clk 0:03:01.9]} 1... c5 {[%clk 0:02:58.9]} 2. Nf3 {[%clk 0:03:03.1]}
2... e6 {[%clk 0:02:59.3]} 3. d4 {[%clk 0:03:03.2]} 3... cxd4 {[%clk 0:03:00.6]}
4. Nxd4 {[%clk 0:03:05.1]} 4... a6 {[%clk 0:03:02]} 5. Nc3 {[%clk 0:03:06.3]}
5... Qc7 {[%clk 0:03:01.6]} 6. g3 {[%clk 0:03:07.4]} 6... Bb4 {[%clk 0:03:00.7]}
7. Bd2 {[%clk 0:03:07.4]} 7... Nf6 {[%clk 0:03:00.2]} 8. Bg2 {[%clk 0:03:08.1]}
8... Nc6 {[%clk 0:03:01.8]} 9. Nb3 {[%clk 0:03:09.5]} 9... Be7 {[%clk
0:02:59.2]} 10. O-O {[%clk 0:03:10.9]} 10... O-O {[%clk 0:02:56.8]} 11. f4
{[%clk 0:03:12.5]} 11... Rd8 {[%clk 0:02:56.9]} 12. e5 {[%clk 0:03:13.2]} 12...
Ne8 {[%clk 0:02:47.5]} 13. Qe2 {[%clk 0:03:07.2]} 13... d6 {[%clk 0:02:39.1]}
14. exd6 {[%clk 0:03:08.1]} 14... Nxd6 {[%clk 0:02:39.7]} 15. Be3 {[%clk
0:03:10]} 15... b5 {[%clk 0:02:28.3]} 16. Bf2 {[%clk 0:03:08.5]} 16... Nf5
{[%clk 0:02:25.3]} 17. Rad1 {[%clk 0:03:02.6]} 17... Bb7 {[%clk 0:02:26.4]} 18.
Ne4 {[%clk 0:02:54.6]} 18... Nb4 {[%clk 0:02:24.3]} 19. c3 {[%clk 0:02:50.3]}
19... Nd5 {[%clk 0:02:23]} 20. Nd4 {[%clk 0:02:46]} 20... Rac8 {[%clk
0:02:14.5]} 21. Kh1 {[%clk 0:02:40.8]} 21... Nxd4 {[%clk 0:02:11.9]} 22. Bxd4
{[%clk 0:02:42.7]} 22... Bf8 {[%clk 0:02:09]} 23. f5 {[%clk 0:02:39.4]} 23... e5
{[%clk 0:02:06.7]} 24. Bg1 {[%clk 0:02:39.2]} 24... f6 {[%clk 0:02:08.3]} 25.
Rd2 {[%clk 0:02:34.3]} 25... Nb6 {[%clk 0:02:04]} 26. Bxb6 {[%clk 0:02:29.3]}
26... Qxb6 {[%clk 0:02:04.2]} 27. Rfd1 {[%clk 0:02:30]} 27... Rxd2 {[%clk
0:01:59.9]} 28. Nxd2 {[%clk 0:02:27.4]} 28... Rd8 {[%clk 0:01:54.8]} 29. Be4
{[%clk 0:02:27.4]} 29... g6 {[%clk 0:01:41.7]} 30. Qf3 {[%clk 0:02:22.6]} 30...
Bxe4 {[%clk 0:01:39.6]} 31. Nxe4 {[%clk 0:02:20.1]} 31... Rxd1+ {[%clk
0:01:40.1]} 32. Qxd1 {[%clk 0:02:22]} 32... gxf5 {[%clk 0:01:41.3]} 33. Qd5+
{[%clk 0:02:22.9]} 33... Kg7 {[%clk 0:01:35.5]} 34. Qd7+ {[%clk 0:02:22.4]}
34... Kg6 {[%clk 0:01:36.6]} 35. Qe8+ {[%clk 0:02:21.1]} 35... Kg7 {[%clk
0:01:37.7]} 36. Qd7+ {[%clk 0:02:16.3]} 36... Kg6 {[%clk 0:01:38.7]} 37. Qe8+
{[%clk 0:02:11.1]} 37... Kg7 {[%clk 0:01:38.7]} 38. Qd7+ {[%clk 0:02:09.7]}
38... Kg6 {[%clk 0:01:39.5]} 1/2-1/2

[Event "*** Titled Tuesday 3|2 Blitz"]
[Site "Chess.com"]
[Date "2016.07.05"]
[Round "7"]
[White "matein28"]
[Black "Viaje"]
[Result "0-1"]
[WhiteElo "2360"]
[BlackElo "2144"]
[TimeControl "180+2"]
[EndTime "18:26:27 PDT"]
[Termination "Viaje won by checkmate"]

1. d4 {[%clk 0:03:01.9]} 1... Nf6 {[%clk 0:03:00.3]} 2. c4 {[%clk 0:03:02.9]}
2... c5 {[%clk 0:03:01.9]} 3. Nf3 {[%clk 0:03:03.9]} 3... cxd4 {[%clk
0:03:02.4]} 4. Nxd4 {[%clk 0:03:05.3]} 4... e5 {[%clk 0:03:04]} 5. Nb5 {[%clk
0:03:05.8]} 5... d5 {[%clk 0:03:05.5]} 6. cxd5 {[%clk 0:03:07.4]} 6... Bc5
{[%clk 0:03:06.1]} 7. e3 {[%clk 0:03:07.2]} 7... O-O {[%clk 0:03:06.5]} 8. Be2
{[%clk 0:03:08.1]} 8... e4 {[%clk 0:03:07.1]} 9. a3 {[%clk 0:03:08.3]} 9... a5
{[%clk 0:03:00.3]} 10. N1c3 {[%clk 0:03:05.2]} 10... Re8 {[%clk 0:02:58.6]} 11.
O-O {[%clk 0:03:06.1]} 11... Bf5 {[%clk 0:02:53.4]} 12. Rb1 {[%clk 0:03:04.1]}
12... Nbd7 {[%clk 0:02:53.5]} 13. b4 {[%clk 0:03:04.9]} 13... axb4 {[%clk
0:02:52.6]} 14. axb4 {[%clk 0:03:06.8]} 14... Bf8 {[%clk 0:02:50.8]} 15. f3
{[%clk 0:02:58.7]} 15... exf3 {[%clk 0:02:49.5]} 16. gxf3 {[%clk 0:02:59.8]}
16... Bxb1 {[%clk 0:02:46]} 17. Nxb1 {[%clk 0:02:58]} 17... Bxb4 {[%clk
0:02:46.2]} 18. Qb3 {[%clk 0:02:54.7]} 18... Bc5 {[%clk 0:02:43.4]} 19. Kh1
{[%clk 0:02:53.7]} 19... Re5 {[%clk 0:02:32.4]} 20. e4 {[%clk 0:02:47.9]} 20...
Qb6 {[%clk 0:02:13]} 21. Bf4 {[%clk 0:02:43.9]} 21... Ree8 {[%clk 0:02:12.9]}
22. N1c3 {[%clk 0:02:36.3]} 22... Ra3 {[%clk 0:01:53.4]} 23. Qc4 {[%clk
0:02:28.2]} 23... Ne5 {[%clk 0:01:48.4]} 24. Bxe5 {[%clk 0:02:29.4]} 24... Rxe5
{[%clk 0:01:50]} 25. Na4 {[%clk 0:02:30.9]} 25... Rxa4 {[%clk 0:01:42.3]} 26.
Qxa4 {[%clk 0:02:32.8]} 26... h6 {[%clk 0:01:43.3]} 27. Qc4 {[%clk 0:02:28.4]}
27... Rh5 {[%clk 0:01:37.8]} 28. f4 {[%clk 0:02:23.4]} 28... Rh3 {[%clk
0:01:38.5]} 29. e5 {[%clk 0:02:20.4]} 29... Nh5 {[%clk 0:01:32.4]} 30. Kg2
{[%clk 0:02:13.3]} 30... Rh4 {[%clk 0:01:19]} 31. Qe4 {[%clk 0:02:05.3]} 31...
g5 {[%clk 0:01:14.1]} 32. Bd3 {[%clk 0:02:02]} 32... Nxf4+ {[%clk 0:01:07.8]}
33. Rxf4 {[%clk 0:02:02.4]} 33... Rxf4 {[%clk 0:01:06.6]} 34. Qh7+ {[%clk
0:02:03.6]} 34... Kf8 {[%clk 0:01:08]} 35. Qh8+ {[%clk 0:01:33.9]} 35... Ke7
{[%clk 0:01:08.5]} 36. d6+ {[%clk 0:01:35.6]} 36... Kd7 {[%clk 0:01:05]} 37. Qf8
{[%clk 0:01:10.8]} 37... Qc6+ {[%clk 0:01:02]} 38. Kg3 {[%clk 0:00:57.6]} 38...
Qf3# {[%clk 0:01:02.3]} 0-1

[Event "*** Titled Tuesday 3|2 Blitz"]
[Site "Chess.com"]
[Date "2016.07.05"]
[Round "7"]
[White "JusticeBot"]
[Black "Zenzo"]
[Result "1-0"]
[WhiteElo "2558"]
[BlackElo "2314"]
[TimeControl "180+2"]
[EndTime "18:26:52 PDT"]
[Termination "JusticeBot won by checkmate"]

1. e4 {[%clk 0:03:01.9]} 1... e5 {[%clk 0:03:00.7]} 2. Nf3 {[%clk 0:03:02.5]}
2... Nc6 {[%clk 0:03:01.5]} 3. Bc4 {[%clk 0:03:04.2]} 3... Bc5 {[%clk
0:03:01.9]} 4. b4 {[%clk 0:03:05.9]} 4... Bxb4 {[%clk 0:03:02.7]} 5. c3 {[%clk
0:03:07.6]} 5... Ba5 {[%clk 0:03:04.2]} 6. d4 {[%clk 0:03:09.4]} 6... exd4
{[%clk 0:03:05.7]} 7. O-O {[%clk 0:03:10.8]} 7... Nf6 {[%clk 0:03:07.1]} 8. Ba3
{[%clk 0:03:11.9]} 8... Bb6 {[%clk 0:02:39.1]} 9. Qb3 {[%clk 0:02:58.3]} 9...
Rf8 {[%clk 0:02:25.8]} 10. e5 {[%clk 0:02:37.8]} 10... Ne4 {[%clk 0:01:48.3]}
11. Bd5 {[%clk 0:02:08.1]} 11... Nc5 {[%clk 0:01:35.6]} 12. Qc4 {[%clk 0:02:08]}
12... Na5 {[%clk 0:01:18.8]} 13. Qb4 {[%clk 0:01:46.4]} 13... d3 {[%clk
0:01:01.9]} 14. Nbd2 {[%clk 0:01:43.1]} 14... c6 {[%clk 0:01:00.1]} 15. Ne4
{[%clk 0:01:28.6]} 15... cxd5 {[%clk 0:00:50.5]} 16. Nd6+ {[%clk 0:01:02.4]}
16... Ke7 {[%clk 0:00:51.3]} 17. Nf5+ {[%clk 0:01:04]} 17... Ke8 {[%clk
0:00:39.9]} 18. Nxg7+ {[%clk 0:01:02.4]} 18... Ke7 {[%clk 0:00:41.4]} 19. Nf5+
{[%clk 0:00:51.3]} 19... Ke8 {[%clk 0:00:40.9]} 20. Nd6+ {[%clk 0:00:51]} 20...
Ke7 {[%clk 0:00:42.4]} 21. Qh4+ {[%clk 0:00:51.9]} 21... f6 {[%clk 0:00:38.8]}
22. Qxh7+ {[%clk 0:00:52.4]} 22... Ke6 {[%clk 0:00:36.9]} 23. Qf5+ {[%clk
0:00:38.8]} 23... Ke7 {[%clk 0:00:37.4]} 24. Rae1 {[%clk 0:00:35.8]} 24... Qc7
{[%clk 0:00:11.8]} 25. exf6+ {[%clk 0:00:31]} 25... Kd8 {[%clk 0:00:13.1]} 26.
Re8+ {[%clk 0:00:30.8]} 26... Rxe8 {[%clk 0:00:14.1]} 27. Nf7# {[%clk
0:00:32.7]} 1-0

[Event "*** Titled Tuesday 3|2 Blitz"]
[Site "Chess.com"]
[Date "2016.07.05"]
[Round "7"]
[White "jcibarra"]
[Black "TyIerDurden"]
[Result "1/2-1/2"]
[WhiteElo "2657"]
[BlackElo "2451"]
[TimeControl "180+2"]
[EndTime "18:26:57 PDT"]
[Termination "Game drawn by agreement"]

1. e4 {[%clk 0:03:01.9]} 1... e6 {[%clk 0:03:01]} 2. d4 {[%clk 0:02:59.1]} 2...
d5 {[%clk 0:03:02.1]} 3. Bd3 {[%clk 0:03:00.7]} 3... dxe4 {[%clk 0:03:03.1]} 4.
Bxe4 {[%clk 0:03:02.6]} 4... Nf6 {[%clk 0:02:59.2]} 5. Bf3 {[%clk 0:03:03.6]}
5... c5 {[%clk 0:02:57.9]} 6. Ne2 {[%clk 0:03:05.1]} 6... Nc6 {[%clk 0:02:56.9]}
7. Be3 {[%clk 0:03:06]} 7... cxd4 {[%clk 0:02:55.1]} 8. Nxd4 {[%clk 0:03:07.9]}
8... Nxd4 {[%clk 0:02:51.7]} 9. Qxd4 {[%clk 0:03:08.2]} 9... Be7 {[%clk
0:02:43.2]} 10. Nc3 {[%clk 0:03:03]} 10... Qa5 {[%clk 0:02:41.9]} 11. Qa4+
{[%clk 0:02:49.5]} 11... Qxa4 {[%clk 0:02:37.6]} 12. Nxa4 {[%clk 0:02:51.4]}
12... Bd7 {[%clk 0:02:39.5]} 13. Nc5 {[%clk 0:02:51.3]} 13... Bxc5 {[%clk
0:02:38.7]} 14. Bxc5 {[%clk 0:02:53.2]} 14... Rc8 {[%clk 0:02:38.2]} 15. Bxa7
{[%clk 0:02:46]} 15... Rxc2 {[%clk 0:02:38.8]} 16. Bd4 {[%clk 0:02:46.8]} 16...
Bc6 {[%clk 0:02:34.5]} 17. Be2 {[%clk 0:02:22]} 17... Be4 {[%clk 0:02:14.2]} 18.
Bc3 {[%clk 0:02:18.9]} 18... Ke7 {[%clk 0:02:10.9]} 19. Bd1 {[%clk 0:02:11.3]}
19... Rxc3 {[%clk 0:02:06.5]} 20. bxc3 {[%clk 0:02:13.2]} 20... Bxg2 {[%clk
0:02:08.4]} 21. Rg1 {[%clk 0:02:14]} 21... Be4 {[%clk 0:02:09]} 22. Bb3 {[%clk
0:02:08.1]} 22... Bg6 {[%clk 0:02:07.5]} 23. Rg3 {[%clk 0:02:05.9]} 23... Ne4
{[%clk 0:02:03.8]} 24. Re3 {[%clk 0:02:05.5]} 24... Nc5 {[%clk 0:02:00.8]} 25.
Rd1 {[%clk 0:02:04.5]} 25... b5 {[%clk 0:01:53.6]} 26. f3 {[%clk 0:01:54.3]}
26... h5 {[%clk 0:01:46.6]} 27. Rd5 {[%clk 0:01:48.7]} 27... Rc8 {[%clk
0:01:37.4]} 28. Kf2 {[%clk 0:01:39.2]} 28... Ne4+ {[%clk 0:01:33.2]} 29. Rxe4
{[%clk 0:01:00.3]} 29... Bxe4 {[%clk 0:01:31.2]} 30. Rxb5 {[%clk 0:01:01.8]}
30... Bd3 {[%clk 0:01:30.9]} 31. Rxh5 {[%clk 0:00:57.3]} 31... Rxc3 {[%clk
0:01:31.7]} 32. Ra5 {[%clk 0:00:53.3]} 32... Bc2 {[%clk 0:01:24.9]} 33. Bxc2
{[%clk 0:00:47.4]} 33... Rxc2+ {[%clk 0:01:25.8]} 34. Kg3 {[%clk 0:00:48.9]}
34... Kf6 {[%clk 0:01:24.5]} 35. h4 {[%clk 0:00:49.3]} 35... Rc1 {[%clk
0:01:18.8]} 36. Ra7 {[%clk 0:00:49.8]} 36... g6 {[%clk 0:01:17]} 37. Ra4 {[%clk
0:00:49.7]} 37... Rg1+ {[%clk 0:01:15.5]} 38. Kf2 {[%clk 0:00:50.3]} 38... Rh1
{[%clk 0:01:15.6]} 39. Rb4 {[%clk 0:00:49.7]} 39... Rh2+ {[%clk 0:01:13]} 40.
Kg3 {[%clk 0:00:49]} 40... Rxa2 {[%clk 0:01:11]} 41. Rb5 {[%clk 0:00:48.7]}
41... e5 {[%clk 0:01:09.3]} 42. Rb7 {[%clk 0:00:48.5]} 1/2-1/2

[Event "*** Titled Tuesday 3|2 Blitz"]
[Site "Chess.com"]
[Date "2016.07.05"]
[Round "7"]
[White "chessking2151"]
[Black "popov_m"]
[Result "1-0"]
[WhiteElo "2333"]
[BlackElo "2174"]
[TimeControl "180+2"]
[EndTime "18:27:00 PDT"]
[Termination "chessking2151 won by checkmate"]

1. e4 {[%clk 0:03:01.9]} 1... e6 {[%clk 0:02:57.7]} 2. d4 {[%clk 0:02:58.5]}
2... d5 {[%clk 0:02:59.2]} 3. Nd2 {[%clk 0:02:58.9]} 3... Nc6 {[%clk 0:02:59.7]}
4. Ngf3 {[%clk 0:02:58.9]} 4... Nf6 {[%clk 0:03:00.6]} 5. e5 {[%clk 0:03:00]}
5... Nd7 {[%clk 0:03:01.7]} 6. Bb5 {[%clk 0:03:01.1]} 6... a6 {[%clk 0:03:01.3]}
7. Bxc6 {[%clk 0:03:02.1]} 7... bxc6 {[%clk 0:03:03.2]} 8. c4 {[%clk 0:03:03.2]}
8... c5 {[%clk 0:02:57.3]} 9. cxd5 {[%clk 0:02:59.5]} 9... exd5 {[%clk
0:02:58.2]} 10. O-O {[%clk 0:03:00.9]} 10... Be7 {[%clk 0:02:58.7]} 11. dxc5
{[%clk 0:03:00.2]} 11... Nxc5 {[%clk 0:02:59.2]} 12. Qe2 {[%clk 0:02:56.2]}
12... O-O {[%clk 0:02:57.5]} 13. Rd1 {[%clk 0:02:53.9]} 13... Ne6 {[%clk
0:02:50.1]} 14. Nf1 {[%clk 0:02:54.7]} 14... Bb7 {[%clk 0:02:47.7]} 15. Ng3
{[%clk 0:02:53.9]} 15... Re8 {[%clk 0:02:33.2]} 16. b3 {[%clk 0:02:49.9]} 16...
c5 {[%clk 0:02:30.9]} 17. Bb2 {[%clk 0:02:50.8]} 17... Qb6 {[%clk 0:02:29]} 18.
Rac1 {[%clk 0:02:51.3]} 18... a5 {[%clk 0:02:18.9]} 19. Nf5 {[%clk 0:02:35.9]}
19... Bf8 {[%clk 0:02:17.1]} 20. Ne3 {[%clk 0:02:35.4]} 20... Red8 {[%clk
0:02:10.2]} 21. Qc2 {[%clk 0:01:57.1]} 21... a4 {[%clk 0:01:40.2]} 22. Rb1
{[%clk 0:01:52.6]} 22... axb3 {[%clk 0:01:39.1]} 23. axb3 {[%clk 0:01:54.5]}
23... Ra2 {[%clk 0:01:36.3]} 24. Ng4 {[%clk 0:01:54]} 24... d4 {[%clk
0:01:29.1]} 25. Qf5 {[%clk 0:01:45.3]} 25... Qxb3 {[%clk 0:00:59.1]} 26. Ba1
{[%clk 0:01:26]} 26... Qa4 {[%clk 0:00:49.1]} 27. h4 {[%clk 0:01:17.9]} 27... d3
{[%clk 0:00:31.7]} 28. Ng5 {[%clk 0:00:38.3]} 28... Bd5 {[%clk 0:00:12.8]} 29.
Qxh7# {[%clk 0:00:38]} 1-0